[Event "Titled Tuesday Blitz May 16 Late 2023"]
[White "Martic, Ivan"]
[Black "ibove"]
[WhiteFideId "929301"]
[WhiteElo "2360"]
[BlackElo "2286"]
[Result "1-0"]
[Round "04"]
[TimeControl "180+2"]
[Date "2023.05.16"]
[WhiteClock "0:01:19"]
[BlackClock "0:00:18"]

1. e4 {[%clk 0:02:56]}  c5 {[%clk 0:02:59]} 2. Nf3 {[%clk 0:02:56]}  d6 {[%clk 0:02:59]} 3. c3 {[%clk 0:02:56]}  e5 {[%clk 0:02:59]} 4. h3 {[%clk 0:02:53]}  Nc6 {[%clk 0:02:58]} 5. Bc4 {[%clk 0:02:52]}  Be7 {[%clk 0:02:47]} 6. d4 {[%clk 0:02:47]}  cxd4 {[%clk 0:02:46]} 7. cxd4 {[%clk 0:02:41]}  Nf6 {[%clk 0:02:36]} 8. Nc3 {[%clk 0:02:36]}  O-O {[%clk 0:02:32]} 9. O-O {[%clk 0:02:36]}  a6 {[%clk 0:02:23]} 10. Bb3 {[%clk 0:02:33]}  b5 {[%clk 0:02:21]} 11. Re1 {[%clk 0:02:31]}  Bb7 {[%clk 0:02:12]} 12. d5 {[%clk 0:02:29]}  Na5 {[%clk 0:02:06]} 13. Bc2 {[%clk 0:02:30]}  Rc8 {[%clk 0:02:02]} 14. Ne2 {[%clk 0:02:28]}  Qc7 {[%clk 0:02:01]} 15. Bd3 {[%clk 0:02:26]}  Nc4 {[%clk 0:01:58]} 16. Ng3 {[%clk 0:02:23]}  g6 {[%clk 0:01:55]} 17. b3 {[%clk 0:02:22]}  Nb6 {[%clk 0:01:52]} 18. Bh6 {[%clk 0:02:21]}  Rfe8 {[%clk 0:01:53]} 19. Rc1 {[%clk 0:02:21]}  Qd7 {[%clk 0:01:49]} 20. Qd2 {[%clk 0:02:20]}  Rxc1 {[%clk 0:01:34]} 21. Rxc1 {[%clk 0:02:21]}  Bf8 {[%clk 0:01:22]} 22. Bxf8 {[%clk 0:02:19]}  Kxf8 {[%clk 0:01:03]} 23. Qa5 {[%clk 0:02:10]}  Nbxd5 {[%clk 0:00:44]} 24. exd5 {[%clk 0:02:09]}  e4 {[%clk 0:00:44]} 25. Rc7 {[%clk 0:02:06]}  Qd8 {[%clk 0:00:44]} 26. Nxe4 {[%clk 0:02:00]}  Nxd5 {[%clk 0:00:34]} 27. Nxd6 {[%clk 0:01:39]}  Nxc7 {[%clk 0:00:21]} 28. Nxe8 {[%clk 0:01:38]}  Kxe8 {[%clk 0:00:20]} 29. Qe1+ {[%clk 0:01:36]}  Kf8 {[%clk 0:00:20]} 30. Be4 {[%clk 0:01:31]}  Bxe4 {[%clk 0:00:21]} 31. Qxe4 {[%clk 0:01:31]}  Qd5 {[%clk 0:00:21]} 32. Qf4 {[%clk 0:01:30]}  Ne6 {[%clk 0:00:20]} 33. Qf6 {[%clk 0:01:24]}  h5 {[%clk 0:00:19]} 34. Ne5 {[%clk 0:01:22]}  Qd1+ {[%clk 0:00:19]} 35. Kh2 {[%clk 0:01:21]}  Nd8 {[%clk 0:00:18]} 36. Nxg6+ {[%clk 0:01:19]}  Ke8 {[%clk 0:00:18]} 37. Qe7# {[%clk 0:01:19]} 1-0


[Site "https://www.chess.com"]

[Event "Titled Tuesday Blitz May 16 Late 2023"]
[White "Escalante Ramirez, Rafael"]
[Black "krucki03"]
[WhiteFideId "3900177"]
[WhiteElo "2255"]
[BlackElo "2468"]
[Result "0-1"]
[Round "04"]
[TimeControl "180+2"]
[Date "2023.05.16"]
[WhiteClock "0:00:00"]
[BlackClock "0:00:14"]

1. Nf3 {[%clk 0:03:00]}  d5 {[%clk 0:02:58]} 2. d4 {[%clk 0:03:00]}  e6 {[%clk 0:02:54]} 3. c4 {[%clk 0:02:59]}  c6 {[%clk 0:02:54]} 4. e3 {[%clk 0:02:59]}  Bd6 {[%clk 0:02:53]} 5. Nbd2 {[%clk 0:02:56]}  f5 {[%clk 0:02:52]} 6. Bd3 {[%clk 0:02:49]}  Nf6 {[%clk 0:02:51]} 7. b3 {[%clk 0:02:47]}  O-O {[%clk 0:02:51]} 8. a4 {[%clk 0:02:47]}  Bd7 {[%clk 0:02:51]} 9. Ba3 {[%clk 0:02:46]}  Be8 {[%clk 0:02:52]} 10. Bxd6 {[%clk 0:02:45]}  Qxd6 {[%clk 0:02:53]} 11. Ne5 {[%clk 0:02:42]}  Nbd7 {[%clk 0:02:50]} 12. Ndf3 {[%clk 0:02:41]}  Bh5 {[%clk 0:02:50]} 13. Qc2 {[%clk 0:02:14]}  Bxf3 {[%clk 0:01:51]} 14. Nxf3 {[%clk 0:02:11]}  Ne4 {[%clk 0:01:51]} 15. c5 {[%clk 0:02:00]}  Qe7 {[%clk 0:01:47]} 16. b4 {[%clk 0:01:52]}  e5 {[%clk 0:01:39]} 17. dxe5 {[%clk 0:01:43]}  Nxe5 {[%clk 0:01:40]} 18. Nxe5 {[%clk 0:01:38]}  Qxe5 {[%clk 0:01:40]} 19. O-O {[%clk 0:01:38]}  Rf6 {[%clk 0:01:35]} 20. b5 {[%clk 0:01:28]}  Rh6 {[%clk 0:01:26]} 21. f4 {[%clk 0:01:22]}  Qe7 {[%clk 0:01:07]} 22. Bxe4 {[%clk 0:01:22]}  fxe4 {[%clk 0:00:55]} 23. g3 {[%clk 0:00:48]}  Rf6 {[%clk 0:00:47]} 24. Qc3 {[%clk 0:00:46]}  Rc8 {[%clk 0:00:43]} 25. Rfc1 {[%clk 0:00:40]}  h5 {[%clk 0:00:37]} 26. h4 {[%clk 0:00:19]}  Rg6 {[%clk 0:00:36]} 27. Kf2 {[%clk 0:00:19]}  Qd7 {[%clk 0:00:35]} 28. bxc6 {[%clk 0:00:12]}  bxc6 {[%clk 0:00:18]} 29. Rab1 {[%clk 0:00:09]}  Qg4 {[%clk 0:00:17]} 30. Rg1 {[%clk 0:00:02]}  Qf3+ {[%clk 0:00:18]} 31. Ke1 {[%clk 0:00:02]}  Rxg3 {[%clk 0:00:17]} 32. Rxg3 {[%clk 0:00:01]}  Qxg3+ {[%clk 0:00:18]} 33. Kd2 {[%clk 0:00:01]}  Qf2+ {[%clk 0:00:16]} 34. Kc1 {[%clk 0:00:00]}  Qg1+ {[%clk 0:00:14]} 0-1


[Site "https://www.chess.com"]

[Event "Titled Tuesday Blitz May 16 Late 2023"]
[White "Koutlas, Nikolaos"]
[Black "MunichMouse"]
[WhiteFideId "25827138"]
[WhiteElo "2215"]
[BlackElo "2271"]
[Result "1-0"]
[Round "04"]
[TimeControl "180+2"]
[Date "2023.05.16"]
[WhiteClock "0:00:49"]
[BlackClock "0:01:08"]

1. Nf3 {[%clk 0:02:25]}  c5 {[%clk 0:02:58]} 2. b3 {[%clk 0:02:24]}  Nf6 {[%clk 0:02:57]} 3. Bb2 {[%clk 0:02:25]}  g6 {[%clk 0:02:56]} 4. g4 {[%clk 0:02:25]}  Bg7 {[%clk 0:02:56]} 5. h3 {[%clk 0:02:25]}  d6 {[%clk 0:02:53]} 6. Bg2 {[%clk 0:02:25]}  e5 {[%clk 0:02:53]} 7. e3 {[%clk 0:02:24]}  O-O {[%clk 0:02:50]} 8. c4 {[%clk 0:02:23]}  Nc6 {[%clk 0:02:49]} 9. d3 {[%clk 0:02:23]}  Re8 {[%clk 0:02:47]} 10. Nc3 {[%clk 0:02:23]}  d5 {[%clk 0:02:46]} 11. cxd5 {[%clk 0:02:22]}  Nxd5 {[%clk 0:02:47]} 12. O-O {[%clk 0:02:22]}  Nxc3 {[%clk 0:02:42]} 13. Bxc3 {[%clk 0:02:20]}  e4 {[%clk 0:02:39]} 14. Bxg7 {[%clk 0:02:20]}  exf3 {[%clk 0:02:39]} 15. Bc3 {[%clk 0:02:16]}  fxg2 {[%clk 0:02:39]} 16. Kxg2 {[%clk 0:02:17]}  Qd5+ {[%clk 0:02:34]} 17. Kg1 {[%clk 0:02:16]}  Be6 {[%clk 0:02:28]} 18. e4 {[%clk 0:02:15]}  Qd7 {[%clk 0:02:27]} 19. f4 {[%clk 0:02:16]}  f5 {[%clk 0:02:22]} 20. gxf5 {[%clk 0:02:10]}  gxf5 {[%clk 0:02:22]} 21. Kh2 {[%clk 0:02:09]}  Nd4 {[%clk 0:02:22]} 22. b4 {[%clk 0:02:06]}  b6 {[%clk 0:02:21]} 23. Rg1+ {[%clk 0:02:02]}  Kh8 {[%clk 0:02:21]} 24. bxc5 {[%clk 0:01:56]}  bxc5 {[%clk 0:02:22]} 25. Qh5 {[%clk 0:01:45]}  Rg8 {[%clk 0:02:20]} 26. Qh6 {[%clk 0:01:42]}  Qf7 {[%clk 0:02:15]} 27. exf5 {[%clk 0:01:08]}  Bxf5 {[%clk 0:02:13]} 28. Qd6 {[%clk 0:01:08]}  Rg6 {[%clk 0:01:23]} 29. Qxc5 {[%clk 0:00:54]}  Rc8 {[%clk 0:01:16]} 30. Qxd4+ {[%clk 0:00:52]}  Qg7 {[%clk 0:01:09]} 31. Qxg7+ {[%clk 0:00:51]}  Rxg7 {[%clk 0:01:08]} 32. Bxg7+ {[%clk 0:00:49]} 1-0


[Site "https://www.chess.com"]

[Event "Titled Tuesday Blitz May 16 Late 2023"]
[White "Kejzar, Petra"]
[Black "Shapiro, Viktor"]
[WhiteFideId "14610213"]
[BlackFideId "4175700"]
[WhiteElo "2089"]
[BlackElo "2152"]
[Result "0-1"]
[Round "04"]
[TimeControl "180+2"]
[Date "2023.05.16"]
[WhiteClock "0:00:14"]
[BlackClock "0:01:05"]

1. e4 {[%clk 0:03:00]}  c5 {[%clk 0:02:59]} 2. Nf3 {[%clk 0:03:01]}  Nc6 {[%clk 0:02:59]} 3. d4 {[%clk 0:03:01]}  cxd4 {[%clk 0:03:00]} 4. Nxd4 {[%clk 0:03:02]}  Nf6 {[%clk 0:02:57]} 5. Nc3 {[%clk 0:03:02]}  e5 {[%clk 0:02:57]} 6. Ndb5 {[%clk 0:03:02]}  d6 {[%clk 0:02:57]} 7. Bg5 {[%clk 0:03:01]}  a6 {[%clk 0:02:57]} 8. Na3 {[%clk 0:03:01]}  Be6 {[%clk 0:02:56]} 9. Nc4 {[%clk 0:02:57]}  b5 {[%clk 0:02:54]} 10. Ne3 {[%clk 0:02:57]}  Qa5 {[%clk 0:02:48]} 11. Qd2 {[%clk 0:02:50]}  b4 {[%clk 0:02:45]} 12. Ncd5 {[%clk 0:02:14]}  Nxe4 {[%clk 0:02:44]} 13. Qd3 {[%clk 0:02:06]}  Nxg5 {[%clk 0:02:43]} 14. Be2 {[%clk 0:01:59]}  f5 {[%clk 0:02:09]} 15. O-O {[%clk 0:01:54]}  f4 {[%clk 0:02:05]} 16. Qc4 {[%clk 0:00:43]}  Rc8 {[%clk 0:02:04]} 17. h4 {[%clk 0:00:35]}  fxe3 {[%clk 0:02:03]} 18. hxg5 {[%clk 0:00:35]}  Qxd5 {[%clk 0:02:02]} 19. Qh4 {[%clk 0:00:35]}  Qd4 {[%clk 0:01:55]} 20. Qh2 {[%clk 0:00:27]}  Be7 {[%clk 0:01:52]} 21. Bxa6 {[%clk 0:00:28]}  Rb8 {[%clk 0:01:45]} 22. Bd3 {[%clk 0:00:28]}  Bxg5 {[%clk 0:01:40]} 23. fxe3 {[%clk 0:00:27]}  Qxe3+ {[%clk 0:01:40]} 24. Kh1 {[%clk 0:00:27]}  Bf4 {[%clk 0:01:34]} 25. Qh4 {[%clk 0:00:26]}  Qg3 {[%clk 0:01:28]} 26. Qh5+ {[%clk 0:00:24]}  Kd7 {[%clk 0:01:26]} 27. Rf3 {[%clk 0:00:22]}  Qg5 {[%clk 0:01:25]} 28. Qxg5 {[%clk 0:00:21]}  Bxg5 {[%clk 0:01:25]} 29. Raf1 {[%clk 0:00:21]}  Be7 {[%clk 0:01:22]} 30. b3 {[%clk 0:00:20]}  Nd4 {[%clk 0:01:20]} 31. R3f2 {[%clk 0:00:20]}  Rbf8 {[%clk 0:01:19]} 32. Rd2 {[%clk 0:00:20]}  Rxf1+ {[%clk 0:01:18]} 33. Bxf1 {[%clk 0:00:21]}  Rf8 {[%clk 0:01:17]} 34. Kg1 {[%clk 0:00:22]}  Bg5 {[%clk 0:01:17]} 35. Rd1 {[%clk 0:00:22]}  Be3+ {[%clk 0:01:17]} 36. Kh2 {[%clk 0:00:21]}  Rf2 {[%clk 0:01:16]} 37. Bd3 {[%clk 0:00:21]}  Bf5 {[%clk 0:01:14]} 38. Bxf5+ {[%clk 0:00:19]}  Nxf5 {[%clk 0:01:14]} 39. c4 {[%clk 0:00:17]}  bxc3 {[%clk 0:01:14]} 40. a4 {[%clk 0:00:18]}  c2 {[%clk 0:01:14]} 41. Rh1 {[%clk 0:00:17]}  Bf4+ {[%clk 0:01:13]} 42. Kh3 {[%clk 0:00:16]}  h5 {[%clk 0:01:13]} 43. a5 {[%clk 0:00:16]}  g5 {[%clk 0:01:12]} 44. g4 {[%clk 0:00:14]}  c1=Q {[%clk 0:01:05]} 45. Rxc1 {[%clk 0:00:14]}  Rh2# {[%clk 0:01:05]} 0-1


[Site "https://www.chess.com"]

[Event "Titled Tuesday Blitz May 16 Late 2023"]
[White "James, Stuart"]
[Black "Womacka, Mathias"]
[WhiteFideId "7400489"]
[BlackFideId "4611390"]
[WhiteElo "1950"]
[BlackElo "2377"]
[Result "0-1"]
[Round "04"]
[TimeControl "180+2"]
[Date "2023.05.16"]
[WhiteClock "0:01:10"]
[BlackClock "0:01:28"]

1. e4 {[%clk 0:02:55]}  c5 {[%clk 0:02:59]} 2. Nf3 {[%clk 0:02:55]}  d6 {[%clk 0:02:59]} 3. Bb5+ {[%clk 0:02:54]}  Nd7 {[%clk 0:02:58]} 4. O-O {[%clk 0:02:52]}  a6 {[%clk 0:02:58]} 5. Be2 {[%clk 0:02:50]}  Ngf6 {[%clk 0:02:57]} 6. d3 {[%clk 0:02:50]}  g6 {[%clk 0:02:56]} 7. a4 {[%clk 0:02:48]}  Bg7 {[%clk 0:02:53]} 8. Nbd2 {[%clk 0:02:47]}  O-O {[%clk 0:02:52]} 9. c3 {[%clk 0:02:46]}  Rb8 {[%clk 0:02:45]} 10. d4 {[%clk 0:02:46]}  cxd4 {[%clk 0:02:38]} 11. cxd4 {[%clk 0:02:43]}  b6 {[%clk 0:02:30]} 12. b3 {[%clk 0:02:37]}  Bb7 {[%clk 0:02:30]} 13. Bd3 {[%clk 0:02:36]}  e5 {[%clk 0:02:23]} 14. Bb2 {[%clk 0:02:35]}  Re8 {[%clk 0:02:14]} 15. Qe2 {[%clk 0:02:34]}  exd4 {[%clk 0:02:07]} 16. Nxd4 {[%clk 0:02:29]}  Nc5 {[%clk 0:02:02]} 17. Rfe1 {[%clk 0:02:23]}  Nfxe4 {[%clk 0:01:52]} 18. Nxe4 {[%clk 0:02:22]}  Bxe4 {[%clk 0:01:49]} 19. Bxe4 {[%clk 0:02:20]}  Rxe4 {[%clk 0:01:50]} 20. Qc4 {[%clk 0:02:15]}  d5 {[%clk 0:01:38]} 21. Qb4 {[%clk 0:01:13]}  Nd3 {[%clk 0:01:28]} 22. Nc6 {[%clk 0:01:10]} 0-1


[Site "https://www.chess.com"]

[Event "Titled Tuesday Blitz May 16 Late 2023"]
[White "liwadas82"]
[Black "Kovacevic, Radmila"]
[BlackFideId "933171"]
[WhiteElo "2445"]
[BlackElo "2194"]
[Result "0-1"]
[Round "04"]
[TimeControl "180+2"]
[Date "2023.05.16"]
[WhiteClock "0:00:08"]
[BlackClock "0:00:12"]

1. e4 {[%clk 0:03:00]}  e5 {[%clk 0:03:00]} 2. Nf3 {[%clk 0:03:00]}  f5 {[%clk 0:03:00]} 3. Nxe5 {[%clk 0:02:58]}  Qf6 {[%clk 0:03:00]} 4. Nc4 {[%clk 0:02:53]}  fxe4 {[%clk 0:02:59]} 5. d4 {[%clk 0:02:48]}  b5 {[%clk 0:02:39]} 6. Ne3 {[%clk 0:02:47]}  c6 {[%clk 0:02:35]} 7. d5 {[%clk 0:02:40]}  Bc5 {[%clk 0:02:32]} 8. Nc3 {[%clk 0:02:39]}  Qg6 {[%clk 0:02:30]} 9. Qg4 {[%clk 0:02:21]}  Nf6 {[%clk 0:02:27]} 10. Qxg6+ {[%clk 0:02:19]}  hxg6 {[%clk 0:02:28]} 11. Be2 {[%clk 0:02:13]}  b4 {[%clk 0:02:14]} 12. Na4 {[%clk 0:02:12]}  Bxe3 {[%clk 0:02:12]} 13. Bxe3 {[%clk 0:02:12]}  cxd5 {[%clk 0:02:12]} 14. O-O-O {[%clk 0:02:09]}  Nc6 {[%clk 0:02:09]} 15. h3 {[%clk 0:02:05]}  d6 {[%clk 0:01:38]} 16. g4 {[%clk 0:02:04]}  Ne7 {[%clk 0:01:33]} 17. f3 {[%clk 0:01:52]}  Bd7 {[%clk 0:01:30]} 18. b3 {[%clk 0:01:47]}  Bxa4 {[%clk 0:01:26]} 19. bxa4 {[%clk 0:01:48]}  Kd7 {[%clk 0:01:15]} 20. g5 {[%clk 0:01:47]}  Nh5 {[%clk 0:01:08]} 21. fxe4 {[%clk 0:01:47]}  dxe4 {[%clk 0:01:02]} 22. Bc5 {[%clk 0:01:39]}  Nf5 {[%clk 0:00:48]} 23. Bg4 {[%clk 0:01:38]}  Kc6 {[%clk 0:00:44]} 24. Bxb4 {[%clk 0:01:27]}  Nhg3 {[%clk 0:00:40]} 25. Rhe1 {[%clk 0:01:24]}  Rhe8 {[%clk 0:00:37]} 26. c4 {[%clk 0:01:10]}  a5 {[%clk 0:00:36]} 27. Ba3 {[%clk 0:01:08]}  Rac8 {[%clk 0:00:33]} 28. Kc2 {[%clk 0:01:02]}  Re6 {[%clk 0:00:30]} 29. Kc3 {[%clk 0:00:59]}  Kb6 {[%clk 0:00:28]} 30. Rb1+ {[%clk 0:00:57]}  Ka6 {[%clk 0:00:26]} 31. Rb5 {[%clk 0:00:56]}  Rc6 {[%clk 0:00:24]} 32. Rb8 {[%clk 0:00:50]}  e3 {[%clk 0:00:23]} 33. Reb1 {[%clk 0:00:49]}  Ne4+ {[%clk 0:00:17]} 34. Kd3 {[%clk 0:00:46]}  Nf2+ {[%clk 0:00:16]} 35. Ke2 {[%clk 0:00:45]}  Rc7 {[%clk 0:00:14]} 36. Bf3 {[%clk 0:00:36]}  Nd4+ {[%clk 0:00:13]} 37. Kf1 {[%clk 0:00:36]}  Nxf3 {[%clk 0:00:14]} 38. c5 {[%clk 0:00:31]}  Nd2+ {[%clk 0:00:13]} 39. Ke2 {[%clk 0:00:29]}  Nxb1 {[%clk 0:00:14]} 40. cxd6 {[%clk 0:00:26]}  Rc2+ {[%clk 0:00:14]} 41. Kf3 {[%clk 0:00:26]}  e2 {[%clk 0:00:14]} 42. d7 {[%clk 0:00:18]}  e1=Q {[%clk 0:00:15]} 43. Ra8+ {[%clk 0:00:15]}  Kb7 {[%clk 0:00:14]} 44. Rb8+ {[%clk 0:00:15]}  Ka7 {[%clk 0:00:13]} 45. Ra8+ {[%clk 0:00:14]}  Kb7 {[%clk 0:00:14]} 46. Rb8+ {[%clk 0:00:14]}  Kxb8 {[%clk 0:00:13]} 47. d8=Q+ {[%clk 0:00:14]}  Kb7 {[%clk 0:00:12]} 48. Qd5+ {[%clk 0:00:14]}  Rcc6 {[%clk 0:00:12]} 49. Qd7+ {[%clk 0:00:11]}  Ka6 {[%clk 0:00:12]} 50. Qd8 {[%clk 0:00:07]}  Qe2+ {[%clk 0:00:12]} 51. Kg3 {[%clk 0:00:08]}  Ne4+ {[%clk 0:00:12]} 52. Kf4 {[%clk 0:00:07]}  Qf2+ {[%clk 0:00:11]} 53. Kg4 {[%clk 0:00:08]}  Qg3# {[%clk 0:00:12]} 0-1


[Site "https://www.chess.com"]

[Event "Titled Tuesday Blitz May 16 Late 2023"]
[White "Lopez Perdomo, Juan David"]
[Black "Bouget, Alexandre"]
[WhiteFideId "4405137"]
[BlackFideId "681318"]
[WhiteElo "1965"]
[BlackElo "2189"]
[Result "0-1"]
[Round "04"]
[TimeControl "180+2"]
[Date "2023.05.16"]
[WhiteClock "0:00:00"]
[BlackClock "0:00:14"]

1. d4 {[%clk 0:02:51]}  Nf6 {[%clk 0:02:57]} 2. c4 {[%clk 0:02:51]}  e6 {[%clk 0:02:58]} 3. Nc3 {[%clk 0:02:50]}  Bb4 {[%clk 0:02:58]} 4. e3 {[%clk 0:02:46]}  O-O {[%clk 0:02:57]} 5. Bd3 {[%clk 0:02:46]}  d5 {[%clk 0:02:56]} 6. Qc2 {[%clk 0:02:31]}  c5 {[%clk 0:02:50]} 7. cxd5 {[%clk 0:02:28]}  exd5 {[%clk 0:02:48]} 8. Ne2 {[%clk 0:02:24]}  Nc6 {[%clk 0:02:47]} 9. dxc5 {[%clk 0:02:24]}  Bxc5 {[%clk 0:02:45]} 10. a3 {[%clk 0:02:20]}  Bd6 {[%clk 0:02:27]} 11. Nb5 {[%clk 0:02:11]}  Bb8 {[%clk 0:02:22]} 12. Nbd4 {[%clk 0:02:09]}  Ne5 {[%clk 0:02:20]} 13. Bf5 {[%clk 0:02:07]}  Bxf5 {[%clk 0:02:14]} 14. Qxf5 {[%clk 0:02:07]}  Ne4 {[%clk 0:02:05]} 15. O-O {[%clk 0:01:58]}  Nd3 {[%clk 0:02:04]} 16. Ng3 {[%clk 0:01:24]}  Qh4 {[%clk 0:01:52]} 17. Nf3 {[%clk 0:01:20]}  Nxg3 {[%clk 0:01:47]} 18. Nxh4 {[%clk 0:01:19]}  Nxf5 {[%clk 0:01:46]} 19. Nxf5 {[%clk 0:01:20]}  Be5 {[%clk 0:01:23]} 20. Rb1 {[%clk 0:00:36]}  Rfe8 {[%clk 0:01:16]} 21. Rd1 {[%clk 0:00:35]}  Nxc1 {[%clk 0:01:15]} 22. Rdxc1 {[%clk 0:00:23]}  g6 {[%clk 0:01:16]} 23. Ng3 {[%clk 0:00:20]}  d4 {[%clk 0:01:14]} 24. exd4 {[%clk 0:00:12]}  Bxd4 {[%clk 0:01:14]} 25. Rd1 {[%clk 0:00:13]}  Rad8 {[%clk 0:01:10]} 26. b3 {[%clk 0:00:11]}  h5 {[%clk 0:01:06]} 27. Kf1 {[%clk 0:00:10]}  h4 {[%clk 0:01:06]} 28. Ne2 {[%clk 0:00:11]}  Be5 {[%clk 0:01:00]} 29. h3 {[%clk 0:00:11]}  Kg7 {[%clk 0:00:52]} 30. Rbc1 {[%clk 0:00:11]}  Kf6 {[%clk 0:00:38]} 31. Ke1 {[%clk 0:00:10]}  Bb2 {[%clk 0:00:34]} 32. Rxd8 {[%clk 0:00:09]}  Rxd8 {[%clk 0:00:35]} 33. Rd1 {[%clk 0:00:09]}  Rxd1+ {[%clk 0:00:33]} 34. Kxd1 {[%clk 0:00:10]}  Bxa3 {[%clk 0:00:33]} 35. Nc3 {[%clk 0:00:10]}  Ke5 {[%clk 0:00:29]} 36. Ke2 {[%clk 0:00:07]}  Bc5 {[%clk 0:00:28]} 37. f3 {[%clk 0:00:06]}  Kf4 {[%clk 0:00:24]} 38. Ne4 {[%clk 0:00:02]}  Be7 {[%clk 0:00:21]} 39. Kf2 {[%clk 0:00:01]}  f5 {[%clk 0:00:21]} 40. g3+ {[%clk 0:00:02]}  Ke5 {[%clk 0:00:18]} 41. Nd2 {[%clk 0:00:02]}  Bc5+ {[%clk 0:00:18]} 42. Kg2 {[%clk 0:00:02]}  hxg3 {[%clk 0:00:17]} 43. Kxg3 {[%clk 0:00:03]}  Kd4 {[%clk 0:00:17]} 44. Nc4 {[%clk 0:00:02]}  b5 {[%clk 0:00:15]} 45. Na5 {[%clk 0:00:00]}  Bb6 {[%clk 0:00:14]} 0-1


[Site "https://www.chess.com"]

[Event "Titled Tuesday Blitz May 16 Late 2023"]
[White "Djordjevic, Dejan N"]
[Black "Urbina Perez, Juan Antonio"]
[WhiteFideId "913316"]
[BlackFideId "2217368"]
[WhiteElo "2261"]
[BlackElo "2197"]
[Result "1-0"]
[Round "04"]
[TimeControl "180+2"]
[Date "2023.05.16"]
[WhiteClock "0:00:23"]
[BlackClock "0:00:01"]

1. e4 {[%clk 0:03:00]}  c5 {[%clk 0:02:56]} 2. Nc3 {[%clk 0:03:00]}  Nc6 {[%clk 0:02:55]} 3. g3 {[%clk 0:03:00]}  g6 {[%clk 0:02:55]} 4. Bg2 {[%clk 0:03:01]}  Bg7 {[%clk 0:02:55]} 5. Nge2 {[%clk 0:02:58]}  e6 {[%clk 0:02:55]} 6. O-O {[%clk 0:02:58]}  Nge7 {[%clk 0:02:55]} 7. d3 {[%clk 0:02:58]}  O-O {[%clk 0:02:54]} 8. Bg5 {[%clk 0:02:57]}  Nd4 {[%clk 0:02:41]} 9. Qd2 {[%clk 0:02:54]}  Rb8 {[%clk 0:02:36]} 10. Nd1 {[%clk 0:02:51]}  b5 {[%clk 0:02:30]} 11. c3 {[%clk 0:02:42]}  Nxe2+ {[%clk 0:02:24]} 12. Qxe2 {[%clk 0:02:43]}  b4 {[%clk 0:02:20]} 13. Be3 {[%clk 0:02:39]}  d6 {[%clk 0:02:14]} 14. Rc1 {[%clk 0:02:31]}  a5 {[%clk 0:02:12]} 15. Re1 {[%clk 0:02:20]}  Ba6 {[%clk 0:02:08]} 16. Qd2 {[%clk 0:02:15]}  e5 {[%clk 0:02:06]} 17. f4 {[%clk 0:02:14]}  f6 {[%clk 0:02:05]} 18. d4 {[%clk 0:02:08]}  cxd4 {[%clk 0:01:45]} 19. cxd4 {[%clk 0:02:08]}  f5 {[%clk 0:01:38]} 20. dxe5 {[%clk 0:01:20]}  dxe5 {[%clk 0:01:35]} 21. Qxd8 {[%clk 0:01:19]}  Rfxd8 {[%clk 0:01:35]} 22. Bc5 {[%clk 0:01:19]}  Kf7 {[%clk 0:01:21]} 23. exf5 {[%clk 0:01:13]}  Nxf5 {[%clk 0:01:16]} 24. fxe5 {[%clk 0:01:12]}  Rbc8 {[%clk 0:01:05]} 25. e6+ {[%clk 0:00:47]}  Kg8 {[%clk 0:00:58]} 26. e7 {[%clk 0:00:46]}  Re8 {[%clk 0:00:55]} 27. Bd5+ {[%clk 0:00:41]}  Kh8 {[%clk 0:00:54]} 28. Nf2 {[%clk 0:00:40]}  h6 {[%clk 0:00:21]} 29. g4 {[%clk 0:00:37]}  Nxe7 {[%clk 0:00:14]} 30. Bf7 {[%clk 0:00:29]}  Rf8 {[%clk 0:00:12]} 31. Rxe7 {[%clk 0:00:27]}  Rxc5 {[%clk 0:00:12]} 32. Rxc5 {[%clk 0:00:26]}  Bd4 {[%clk 0:00:11]} 33. Rcc7 {[%clk 0:00:26]}  Bf6 {[%clk 0:00:04]} 34. Re8 {[%clk 0:00:26]}  Kg7 {[%clk 0:00:02]} 35. Bxg6+ {[%clk 0:00:24]}  Kxg6 {[%clk 0:00:02]} 36. Rxf8 {[%clk 0:00:24]}  Be5 {[%clk 0:00:02]} 37. Rc6+ {[%clk 0:00:23]}  Kg5 {[%clk 0:00:02]} 38. Rxa6 {[%clk 0:00:23]}  Bf4 {[%clk 0:00:02]} 39. Rxa5+ {[%clk 0:00:23]}  Kh4 {[%clk 0:00:02]} 40. Rxf4 {[%clk 0:00:23]}  b3 {[%clk 0:00:01]} 41. Rh5# {[%clk 0:00:23]} 1-0


[Site "https://www.chess.com"]

[Event "Titled Tuesday Blitz May 16 Late 2023"]
[White "ritanovikova"]
[Black "Toniutti, Ezio"]
[BlackFideId "113034"]
[WhiteElo "2137"]
[BlackElo "2215"]
[Result "0-1"]
[Round "04"]
[TimeControl "180+2"]
[Date "2023.05.16"]
[WhiteClock "0:02:00"]
[BlackClock "0:02:39"]

1. e4 {[%clk 0:02:59]}  e5 {[%clk 0:03:00]} 2. Nf3 {[%clk 0:02:59]}  Nc6 {[%clk 0:03:00]} 3. Bc4 {[%clk 0:02:59]}  Nf6 {[%clk 0:03:00]} 4. d3 {[%clk 0:02:58]}  Be7 {[%clk 0:03:00]} 5. O-O {[%clk 0:02:57]}  O-O {[%clk 0:03:00]} 6. c3 {[%clk 0:02:56]}  d6 {[%clk 0:03:01]} 7. h3 {[%clk 0:02:56]}  Kh8 {[%clk 0:03:00]} 8. Re1 {[%clk 0:02:55]}  Ng8 {[%clk 0:03:00]} 9. d4 {[%clk 0:02:54]}  f5 {[%clk 0:02:55]} 10. exf5 {[%clk 0:02:51]}  e4 {[%clk 0:02:49]} 11. Rxe4 {[%clk 0:02:50]}  d5 {[%clk 0:02:49]} 12. Bb3 {[%clk 0:02:37]}  dxe4 {[%clk 0:02:48]} 13. Nfd2 {[%clk 0:02:23]}  Bxf5 {[%clk 0:02:47]} 14. Nf1 {[%clk 0:02:19]}  Bd6 {[%clk 0:02:46]} 15. Qh5 {[%clk 0:02:13]}  Bg6 {[%clk 0:02:44]} 16. Qg4 {[%clk 0:02:11]}  Nf6 {[%clk 0:02:44]} 17. Qh4 {[%clk 0:02:10]}  Ne7 {[%clk 0:02:41]} 18. Bg5 {[%clk 0:02:10]}  Nf5 {[%clk 0:02:41]} 19. Qxh7+ {[%clk 0:02:00]}  Kxh7 {[%clk 0:02:39]} 0-1


[Site "https://www.chess.com"]

[Event "Titled Tuesday Blitz May 16 Late 2023"]
[White "Prydun, Andriy"]
[Black "Chessadiction1990"]
[WhiteFideId "14145898"]
[WhiteElo "2164"]
[BlackElo "2133"]
[Result "1-0"]
[Round "04"]
[TimeControl "180+2"]
[Date "2023.05.16"]
[WhiteClock "0:00:05"]
[BlackClock "0:00:00"]

1. e4 {[%clk 0:02:59]}  c5 {[%clk 0:02:59]} 2. Nf3 {[%clk 0:02:58]}  d6 {[%clk 0:03:00]} 3. c3 {[%clk 0:02:58]}  Nf6 {[%clk 0:02:52]} 4. h3 {[%clk 0:02:58]}  Nc6 {[%clk 0:02:42]} 5. Bd3 {[%clk 0:02:55]}  e6 {[%clk 0:02:41]} 6. Bc2 {[%clk 0:02:44]}  Be7 {[%clk 0:02:40]} 7. d4 {[%clk 0:02:40]}  cxd4 {[%clk 0:02:41]} 8. cxd4 {[%clk 0:02:38]}  d5 {[%clk 0:02:39]} 9. Nc3 {[%clk 0:02:32]}  O-O {[%clk 0:02:35]} 10. O-O {[%clk 0:02:31]}  dxe4 {[%clk 0:02:15]} 11. Nxe4 {[%clk 0:02:30]}  Nb4 {[%clk 0:02:12]} 12. Bb1 {[%clk 0:02:16]}  b6 {[%clk 0:01:20]} 13. Nc3 {[%clk 0:01:03]}  Bb7 {[%clk 0:01:15]} 14. Be3 {[%clk 0:01:01]}  Rc8 {[%clk 0:01:10]} 15. Re1 {[%clk 0:00:57]}  Nbd5 {[%clk 0:00:53]} 16. Bd2 {[%clk 0:00:43]}  Nxc3 {[%clk 0:00:38]} 17. bxc3 {[%clk 0:00:42]}  Nd5 {[%clk 0:00:20]} 18. Be4 {[%clk 0:00:30]}  f5 {[%clk 0:00:18]} 19. Bc2 {[%clk 0:00:07]}  Bf6 {[%clk 0:00:18]} 20. Bb3 {[%clk 0:00:06]}  Ba6 {[%clk 0:00:16]} 21. Rxe6 {[%clk 0:00:05]}  Nxc3 {[%clk 0:00:12]} 22. Bxc3 {[%clk 0:00:04]}  Rxc3 {[%clk 0:00:12]} 23. Re8+ {[%clk 0:00:04]}  Kh8 {[%clk 0:00:11]} 24. Rxd8 {[%clk 0:00:04]}  Rxd8 {[%clk 0:00:10]} 25. Rc1 {[%clk 0:00:04]}  Rd3 {[%clk 0:00:08]} 26. Qe1 {[%clk 0:00:04]}  Bxd4 {[%clk 0:00:07]} 27. Rc7 {[%clk 0:00:04]}  Bf6 {[%clk 0:00:03]} 28. Qe6 {[%clk 0:00:05]}  h6 {[%clk 0:00:00]} 29. Kh2 {[%clk 0:00:05]} 1-0


[Site "https://www.chess.com"]